[Event "Chessable English Open-ch 2022"]
[Site "Kenilwoth"]
[Date "2022.05.22"]
[Round "7.11"]
[White "Duncan, Patrick C M"]
[Black "Zheng, Harry Z"]
[Result "1-0"]
[ECO "A01"]
[WhiteElo "2013"]
[BlackElo "1915"]
[Annotator "TA"]
[PlyCount "123"]
[EventDate "2022.05.18"]
[EventType "swiss"]
[EventCountry "ENG"]
[SourceTitle "playchess.com"]
[Source "ChessBase"]
[SourceQuality "1"]
[TimeControl "5400+30"]

{[%evp 9,122,14,14,10,12,20,12,0,10,35,53,47,49,31,40,33,41,29,32,20,27,19,30,27,42,23,23,19,31,27,22,33,43,47,52,64,68,48,121,45,1014,1006,991,966,962,425,421,417,871,273,270,216,281,204,193,159,156,131,154,119,130,125,164,141,210,157,164,152,164,145,210,175,225,170,247,208,192,189,201,197,269,267,641,624,2045,1908,1703,1675,1519,1320,2486,2408,2353,2046,6303,29956,5222,2124,29975,29975,29986,29987,29986,29987,29993,29994,29994,29995,29996,29997,29997,29998,29998,29999,29999]} 1. b3 {[%emt 0:00:11]} e5 {[%emt 0:00:19]} 2. Bb2 {[%emt 0:00:09]} Nc6 {[%emt 0:00:12]} 3. e3 {[%emt 0:00:09][%cal Be2e3,Be3d4,Bd4d5][%mdl 32]} Nf6 {[%emt 0:00:37]} 4. Nf3 {[%emt 0:00:20]} Bd6 {[%emt 0:01:04]} 5. d4 {[%emt 0:00:59]} exd4 {[%emt 0:00:27]} 6. exd4 {[%emt 0:00:18] A01: Nimzowitsch-Larsen Opening.} O-O {[%emt 0:00:25]} 7. Be2 {[%emt 0:00:21][%cal Bf1e2,Be2d3,Bd3c2][%mdl 32]} Re8 {[%emt 0:00:20]} 8. O-O {[%emt 0:00:42] The position is equal.} Bf8 {[%emt 0:00:25]} 9. d5 {[%emt 0:00:49] [#]} Nb4 $146 {[%emt 0:00:16]} ({Predecessor:} 9... Nxd5 10. Qxd5 Rxe2 11. Ng5 Ne5 12. Nxh7 Kxh7 13. Bxe5 Kg8 14. Nc3 Rxe5 15. Qxe5 c6 {1-0 (45) Noritsyn,N (2512)-Girinath,P (2361) Chess.com INT 2022}) 10. c4 {[%emt 0:02:10]} a5 {[%emt 0:00:27]} 11. a3 {[%emt 0:12:36]} Na6 {[%emt 0:00:39]} 12. Bd3 {[%emt 0:01:39]} d6 {[%emt 0:03:30]} 13. h3 {[%emt 0:03:20]} Bd7 {[%emt 0:02:09]} 14. Bc2 {[%emt 0:03:40]} g6 {[%emt 0:02:05]} 15. Nc3 {[%emt 0:03:06]} Bg7 {[%emt 0:00:49]} 16. Qd2 {[%emt 0:02:35]} Qc8 {[%emt 0:09:53][%cal Od7h3]} 17. Kh2 {[%emt 0:00:54]} Bf5 {[%emt 0:07:12]} 18. Rfe1 {[%emt 0:00:48]} Bxc2 {[%emt 0:04:20]} 19. Rxe8+ {[%emt 0:01:42]} Qxe8 {[%emt 0:00:16]} 20. Qxc2 {[%emt 0:00:19]} Nd7 {[%emt 0:03:00]} 21. Re1 {[%emt 0:02:14]} Ne5 {[%emt 0:07:01]} 22. Nxe5 {[%emt 0:01:10]} Bxe5+ {[%emt 0:00:22]} 23. Kh1 {[%emt 0:00:18]} Qd7 {[%emt 0:06:47]} (23... Qd8 $14) 24. f4 {[%emt 0:12:16]} (24. Ne4 $16 {Black must now prevent Bxe5.} Qe7 25. c5) 24... Bxf4 {[%emt 0:09:05][%mdl 8192]} (24... Bg7 $14) 25. Ne4 $18 {[%emt 0:01:03] [#] Intending Nf6+ and mate.} Kf8 {[%emt 0:08:23]} 26. Nf6 {[%emt 0:01:49][%csl LRd7,LRh7]} (26. Qc3 Be5 27. Qc1 Kg7 $11) 26... Qf5 {[%emt 0:00:20]} 27. Nxh7+ {[%emt 0:02:08]} (27. Qe2 $142 {Qe7+ would kill now.} Be5 28. Bxe5 dxe5 29. Rf1) 27... Kg8 {[%emt 0:00:20]} 28. Nf6+ {[%emt 0:00:44]} ({Don't blunder} 28. Qc3 $2 Be5 29. Qd2 Bxb2 30. Qxb2 Kxh7 $19) 28... Kf8 {[%emt 0:00:14]} (28... Kh8 $142 29. Ng4+ Be5 30. Qxf5 gxf5) 29. Qxf5 $2 {[%emt 0:07:20]} (29. Qe2) 29... gxf5 {[%emt 0:00:10]} 30. Rf1 {[%emt 0:00:43]} Be5 {[%emt 0:04:48]} 31. Bxe5 {[%emt 0:05:36]} dxe5 {[%emt 0:00:09][%mdl 4096] Endgame KRN-KRN} 32. Nd7+ {[%emt 0:00:31]} Ke7 {[%emt 0:04:54]} 33. Nxe5 {[%emt 0:00:11]} Kf6 {[%emt 0:00:12]} 34. Nd3 {[%emt 0:00:38] White is more active.} Re8 {[%emt 0:02:14]} 35. Rf3 {[%emt 0:03:00]} ({Reject} 35. g4 $6 Re3 36. Rxf5+ Kg7 $14) 35... Kg5 {[%emt 0:01:34]} 36. Kh2 {[%emt 0:01:06]} Re2 {[%emt 0:02:23]} (36... Re4 $16 37. Nf2 Rd4) 37. Kg3 {[%emt 0:00:39]} Re4 {[%emt 0:02:40][%cal Oa5a4]} 38. a4 {[%emt 0:00:46]} Rd4 {[%emt 0:03:01]} 39. Kf2 {[%emt 0:05:17]} Re4 {[%emt 0:00:15]} (39... f4 $16 {was called for.} 40. h4+ Kxh4) 40. g3 {[%emt 0:00:33]} Rd4 {[%emt 0:03:28]} (40... b6 {might work better.} 41. Re3 Rd4) 41. Re3 {[%emt 0:00:58]} Re4 {[%emt 0:00:35]} (41... Kf6 {was worth a try.} 42. Rf3 b6) 42. Kf3 {[%emt 0:01:19]} Rd4 {[%emt 0:01:12]} 43. Ke2 {[%emt 0:01:00]} Kf6 {[%emt 0:01:39]} 44. Rf3 {[%emt 0:02:46] Strongly threatening g4.} Kg5 {[%emt 0:00:48] Prevents g4.} (44... Re4+ $142 45. Kd2 Kg6) 45. Rf4 {[%emt 0:01:14]} Rxf4 {[%emt 0:02:48]} (45... Re4+ 46. Kf3 Re8 47. h4+ Kg6) 46. gxf4+ {[%emt 0:00:22] KN-KN} ({Less strong is} 46. Nxf4 Nc5 47. Nd3 Nxb3 $16) 46... Kh4 {[%emt 0:00:08]} 47. c5 {[%emt 0:01:17] [#] Threatens to win with d6.} Nb8 {[%emt 0:01:38]} 48. d6 {[%emt 0:04:06]} cxd6 {[%emt 0:01:01]} 49. cxd6 {[%emt 0:00:08]} Kg3 {[%emt 0:02:30]} 50. Ke3 {[%emt 0:00:47] Ne5 is the strong threat.} Nc6 {[%emt 0:00:51]} 51. d7 {[%emt 0:02:57]} f6 {[%emt 0:00:41]} 52. Nb2 {[%emt 0:00:55]} Nd8 {[%emt 0:00:33]} 53. Nc4 {[%emt 0:00:25]} Ne6 {[%emt 0:00:09]} 54. Nxa5 {[%emt 0:00:30] White mates.} Nxf4 {[%emt 0:00:05]} 55. d8=Q {[%emt 0:00:32]} Ng2+ {[%emt 0:00:04]} 56. Ke2 {[%emt 0:01:01]} f4 {[%emt 0:00:11]} 57. Qxf6 {[%emt 0:00:24]} Nh4 {[%emt 0:00:13]} 58. Qg5+ {[%emt 0:00:55]} Kh2 {[%emt 0:00:18]} 59. Qxh4 {[%emt 0:02:59]} Kg1 {[%emt 0:00:16]} 60. Qf2+ {[%emt 0:00:28]} Kh1 {[%emt 0:00:07]} 61. Kf1 {[%emt 0:00:22][%csl Gf1][%cal Rf2g2]} f3 {[%emt 0:00:09]} 62. Qg1# {[%emt 0:00:08] Weighted Error Value: White=0.31/Black=0.38} 1-0

[Event "Chessable English Open-ch 2022"]
[Site "Kenilwoth"]
[Date "2022.05.22"]
[Round "7.12"]
[White "Hepworth, Peter"]
[Black "Herring, Samuel"]
[Result "0-1"]
[ECO "D04"]
[WhiteElo "1843"]
[BlackElo "1900"]
[Annotator "TA"]
[PlyCount "134"]
[EventDate "2022.05.18"]
[EventType "swiss"]
[EventCountry "ENG"]
[SourceTitle "playchess.com"]
[Source "ChessBase"]
[SourceQuality "1"]
[TimeControl "5400+30"]

{[%evp 9,134,0,-6,-11,-11,-45,-13,-27,-13,-20,-19,-25,-27,-15,39,46,44,47,45,-12,58,0,29,0,0,0,0,-46,-27,-29,-29,-32,-40,-44,-33,-44,-43,-44,-47,-69,-39,-70,0,0,0,-102,-97,-345,-345,-505,-541,-775,-500,-490,-391,-570,-553,-555,-534,-684,-683,-696,-702,-665,-637,-725,-725,-716,-711,-730,-734,-820,-793,-769,-763,-1333,-1430,-1840,-1907,-1839,-2009,-29973,-29963,-6110,-1386,-6525,-2718,-1797,-1859,-29973,-29975,-29980,-29977,-29977,-29979,-29979,-29980,-29981,-29982,-29982,-29981,-29981,-29982,-29982,-29983,-29983,-29982,-29984,-29982,-29983,-29984,-29984,-29985,-29985,-29986,-29988,-29986,-29995,-29987,-29987,-29988,-29990,-29989,-29990,-29987,-29989,-29988]} 1. d4 {[%emt 0:13:54]} d5 {[%emt 0:00:05]} 2. Nf3 {[%emt 0:00:10]} Nf6 {[%emt 0:00:05]} 3. e3 {[%emt 0:00:34]} c5 {[%emt 0:00:22]} 4. b3 {[%emt 0:00:10]} cxd4 {[%emt 0:00:58]} 5. exd4 {[%emt 0:00:15]} Nc6 {[%emt 0:00:42]} 6. Be2 {[%emt 0:01:15] D04: Colle System.} Bf5 {[%emt 0:01:31]} 7. a3 {[%emt 0:01:22]} e6 {[%emt 0:00:43]} 8. O-O {[%emt 0:00:17] The position is equal.} Bd6 {[%emt 0:00:53]} 9. c4 {[%emt 0:01:21]} O-O {[%emt 0:06:17]} 10. c5 {[%emt 0:05:38]} Bc7 {[%emt 0:01:19]} 11. b4 {[%emt 0:00:13]} e5 {[%emt 0:03:59]} (11... Ne4 $11) 12. dxe5 $14 {[%emt 0:03:56]} Nxe5 {[%emt 0:01:15] [#]} 13. Nd4 $146 {[%emt 0:06:00]} ({Predecessor:} 13. Nbd2 Nd3 14. Bxd3 Bxd3 15. Re1 Ne4 16. Bb2 Re8 17. Nb3 Bc4 18. Qd4 Qf6 19. Qxf6 Nxf6 {0-1 (69) Beckers,P (1600)-Krukowski,M (1932) Brasschaat 2003}) 13... Qd7 {[%emt 0:14:30]} 14. f3 {[%emt 0:10:29]} ({Better is} 14. Nc3 $14) 14... a6 {[%emt 0:05:45]} (14... a5 $11) 15. Nc3 {[%emt 0:11:09]} ({White should try} 15. Bg5 $14) 15... Nc4 {[%emt 0:18:30]} 16. Bd3 {[%emt 0:14:21]} Bg6 {[%emt 0:02:34]} 17. Bxg6 {[%emt 0:04:53]} hxg6 {[%emt 0:00:06]} 18. Nce2 {[%emt 0:00:39]} (18. Ra2 $11) 18... Rfe8 $15 {[%emt 0:02:00]} 19. Qd3 {[%emt 0:01:14]} b6 {[%emt 0:02:25]} 20. c6 {[%emt 0:03:00]} Qe7 {[%emt 0:01:33]} 21. Ra2 {[%emt 0:02:02]} b5 {[%emt 0:01:38]} 22. g3 {[%emt 0:06:51]} Bb6 {[%emt 0:01:11]} 23. Kg2 {[%emt 0:00:20]} Rac8 {[%emt 0:01:59]} 24. Rc2 {[%emt 0:01:46]} ({Of course not} 24. Bf4 Nh5 25. Bc1 Ne5 $17) 24... Kf8 {[%emt 0:10:26]} 25. g4 {[%emt 0:00:33]} Ne3+ {[%emt 0:01:34]} (25... Qa7 $15) 26. Bxe3 $11 {[%emt 0:00:52]} Qxe3 {[%emt 0:00:06]} 27. Qxe3 {[%emt 0:00:48]} (27. Qd2 $11 {keeps the balance.}) 27... Rxe3 $17 {[%emt 0:00:01]} 28. Ra1 $2 {[%emt 0:04:28] Now White is beyond hope.} (28. Rd2 $17) 28... Rd3 $19 {[%emt 0:02:09]} 29. a4 {[%emt 0:00:10]} (29. Rc5 $142) 29... Bxd4 {[%emt 0:01:51]} 30. axb5 {[%emt 0:01:05]} axb5 {[%emt 0:03:21]} 31. Ra5 {[%emt 0:00:26]} Ke7 {[%emt 0:01:45] And now ...Be3 would win.} 32. g5 {[%emt 0:01:42]} (32. Nxd4 {was called for.} Rxd4 33. Rxb5) 32... Nh5 {[%emt 0:01:41]} 33. Nxd4 {[%emt 0:00:55]} Rxd4 {[%emt 0:00:07]} 34. Ra7+ {[%emt 0:00:24]} Ke6 {[%emt 0:02:56]} 35. Re2+ {[%emt 0:00:45]} Kf5 {[%emt 0:02:49] [#] Strongly threatening ...Nf4+.} 36. Rxf7+ {[%emt 0:00:16]} Kxg5 {[%emt 0:00:14] White must now prevent ...Nf4+.} 37. Re5+ {[%emt 0:00:21]} Kh6 {[%emt 0:01:02]} 38. c7 {[%emt 0:00:29]} Nf6 {[%emt 0:01:45]} 39. Ree7 {[%emt 0:00:49]} Rxb4 {[%emt 0:00:46]} 40. Rxg7 {[%emt 0:00:23]} Rc4 {[%emt 0:01:29]} 41. Rgf7 {[%emt 0:00:08]} Rc6 {[%emt 0:00:49]} 42. f4 {[%emt 0:00:37]} b4 {[%emt 0:01:19]} 43. Re3 {[%emt 0:00:36]} R8xc7 {[%emt 0:01:26]} 44. Rf8 {[%emt 0:01:36]} Rc2+ {[%emt 0:00:17]} 45. Kg3 {[%emt 0:00:46]} Nh5+ {[%emt 0:00:47]} 46. Kf3 {[%emt 0:00:24]} R2c3 {[%emt 0:00:34] [#] ( -> ...d4)} 47. Rb8 {[%emt 0:00:40]} Rxe3+ {[%emt 0:00:44]} 48. Kxe3 {[%emt 0:00:05][%mdl 4096] Endgame KRN-KR} Rc4 {[%emt 0:00:14]} 49. Rb5 {[%emt 0:00:48]} Nxf4 {[%emt 0:00:24] Black mates.} 50. h4 {[%emt 0:00:40]} Re4+ {[%emt 0:00:11]} 51. Kf3 {[%emt 0:00:10]} Kh5 {[%emt 0:01:19]} 52. Kg3 {[%emt 0:00:04]} g5 {[%emt 0:01:00]} 53. hxg5 {[%emt 0:00:13]} Kxg5 {[%emt 0:00:07]} 54. Kf3 {[%emt 0:00:08]} Rc4 {[%emt 0:00:18]} 55. Ke3 {[%emt 0:00:09]} Kf5 {[%emt 0:00:24]} 56. Rb8 {[%emt 0:00:24]} Re4+ {[%emt 0:00:15]} 57. Kd2 {[%emt 0:00:05]} Ke5 {[%emt 0:00:20]} 58. Rb7 {[%emt 0:00:45]} Rc4 {[%emt 0:00:21]} 59. Rb8 {[%emt 0:00:28]} Kd4 {[%emt 0:00:55]} 60. Rb7 {[%emt 0:00:24]} Ne6 {[%emt 0:00:25]} 61. Rb8 {[%emt 0:00:40]} Nc5 {[%emt 0:00:07]} 62. Rb6 {[%emt 0:00:32]} Ne4+ {[%emt 0:00:14]} 63. Kd1 {[%emt 0:00:40]} Kc3 {[%emt 0:00:20]} 64. Rh6 {[%emt 0:01:44]} d4 {[%emt 0:00:45]} 65. Rh2 {[%emt 0:00:48]} Kb3 {[%emt 0:01:42]} 66. Rh4 {[%emt 0:00:43]} Nc5 {[%emt 0:01:10]} 67. Rh2 {[%emt 0:01:14]} Ka3 {[%emt 0:00:19] Weighted Error Value: White=0.55/Black=0.27 (precise)} 0-1

[Event "Chessable English Open-ch 2022"]
[Site "Kenilwoth"]
[Date "2022.05.22"]
[Round "7.13"]
[White "Shenbagakumar, Gautham"]
[Black "Wells, Daniel J"]
[Result "0-1"]
[ECO "B33"]
[WhiteElo "1700"]
[BlackElo "2020"]
[Annotator "TA"]
[PlyCount "136"]
[EventDate "2022.05.18"]
[EventType "swiss"]
[EventCountry "ENG"]
[SourceTitle "playchess.com"]
[Source "ChessBase"]
[SourceQuality "1"]
[TimeControl "5400+30"]

{[%evp 20,135,16,10,12,12,18,8,14,0,0,0,17,21,25,0,5,-17,-10,-52,-54,-73,-64,-66,-62,-72,-71,-74,-66,-256,1,-21,-20,-18,-12,-8,-1,-70,-39,-52,-49,-50,-37,-35,-14,-100,-55,-114,-111,-94,-99,-185,-183,-474,-462,-358,-338,-431,-155,-328,-649,-710,-727,-682,-387,-625,-596,-502,-456,-419,-383,-1487,-1414,-1368,-1322,-2513,-2370,-2338,-2039,-29983,-29984,-29984,-29984,-29984,-29985,-29985,-29986,-29986,-29987,-29987,-29988,-29989,-29990,-29992,-29993,-29993,-29993,-29995,-29996,-29996,-29994,-29996,-29997,-29997,-29996,-29996,-29995,-29995,-29996,-29996,-29996,-29998,-29997,-29998,-29999,-29999,-29999,-29999]} 1. e4 {[%emt 0:00:03]} c5 {[%emt 0:00:28]} 2. Nf3 {[%emt 0:00:05][%cal Bg1f3,Bf3d4,Bd4b5,Bb5a3,Ba3c2][%mdl 32]} Nc6 {[%emt 0:00:05]} 3. d4 {[%emt 0:00:06]} cxd4 {[%emt 0:00:05]} 4. Nxd4 {[%emt 0:00:03]} Nf6 {[%emt 0:00:27]} 5. Nc3 {[%emt 0:00:06]} e5 {[%emt 0:00:07]} 6. Ndb5 {[%emt 0:00:10]} d6 {[%emt 0:00:10]} 7. Bg5 {[%emt 0:00:06]} a6 {[%emt 0:00:07]} 8. Na3 {[%emt 0:00:04]} b5 {[%emt 0:00:11]} 9. Nd5 {[%emt 0:00:07]} Be7 {[%emt 0:00:06]} 10. Bxf6 {[%emt 0:00:05]} Bxf6 {[%emt 0:00:10]} 11. c4 {[%emt 0:00:06]} b4 {[%emt 0:00:28] B33: Sicilian: Pelikan and Sveshnikov Variations.} 12. Nc2 {[%emt 0:00:04]} O-O $1 {[%emt 0:00:08][%mdl 4] is now more promising than 12...a5.} 13. g3 {[%emt 0:00:07]} Bg5 {[%emt 0:00:46] The position is equal.} 14. Bg2 {[%emt 0:04:11]} (14. Ndxb4 Nxb4 15. Nxb4 Qb6 $17) 14... a5 {[%emt 0:00:45]} 15. O-O {[%emt 0:00:07]} Be6 {[%emt 0:10:28]} 16. b3 {[%emt 0:03:40]} Bxd5 {[%emt 0:02:10]} 17. Qxd5 {[%emt 0:00:06]} Qb6 {[%emt 0:00:41] [#]} 18. Kh1 $146 {[%emt 0:01:51]} ({But not} 18. Qxd6 $2 Rfd8 19. Qd5 (19. c5 $2 Qb5 $19) 19... Rxd5 $19) ({Predecessor:} 18. h4 Bh6 19. Bh3 Rfd8 20. Rfd1 Rab8 21. Kg2 Ne7 22. Qd3 g6 23. a3 Nc6 24. axb4 Nxb4 25. Nxb4 Qxb4 {1-0 (54) Kravtsiv,M (2602)-Venkatesh,M (2499) Chennai 2012}) 18... a4 {[%emt 0:03:35]} 19. Qd3 {[%emt 0:23:46]} axb3 {[%emt 0:36:15]} 20. axb3 {[%emt 0:02:32]} Rxa1 {[%emt 0:00:33]} 21. Rxa1 {[%emt 0:04:20]} Qxf2 {[%emt 0:01:11]} 22. Ra6 {[%emt 0:04:18]} Nd4 {[%emt 0:05:21]} 23. Nxd4 {[%emt 0:03:31]} exd4 {[%emt 0:00:06]} 24. Rxd6 $2 {[%emt 0:05:23] [#]} (24. Qf3 $1 $15 Qe1+ 25. Bf1) 24... Be3 $2 {[%emt 0:00:32]} (24... Ra8 $1 $19 {[%cal Ra8a1] ( -> ...Ra1+)} 25. Qb1 (25. Qf1 $2 Qb2 $19) 25... Ra2) 25. Qd1 {[%emt 0:00:54]} g6 {[%emt 0:05:32]} 26. e5 {[%emt 0:07:17]} Qf5 {[%emt 0:14:49]} 27. Rd5 {[%emt 0:07:07]} Re8 {[%emt 0:08:38]} 28. g4 {[%emt 0:14:29]} (28. Qf3 $11) 28... Qf4 {[%emt 0:01:35] Black is more active.} 29. c5 {[%emt 0:02:22]} Rxe5 $40 {[%emt 0:01:08][%mdl 128] Black attacks.} 30. c6 {[%emt 0:00:51]} Rxd5 {[%emt 0:03:07]} 31. Bxd5 $15 {[%emt 0:00:01][%mdl 4096] Endgame KQB-KQB} Kg7 {[%emt 0:01:50]} 32. Bg2 {[%emt 0:01:43]} (32. Qf3 $11 {remains equal.}) 32... Qd6 {[%emt 0:00:52] Black converts the advantage convincingly.} 33. Qd3 {[%emt 0:00:57]} (33. Be4 $1 $15) 33... Bf4 {[%emt 0:00:55]} 34. h3 {[%emt 0:00:07]} Qc5 {[%emt 0:00:14] [#] Strongly threatening ...Qc1+.} 35. Qf1 {[%emt 0:00:23]} (35. Be4 $17) 35... Bc7 {[%emt 0:00:53]} 36. Be4 $2 {[%emt 0:01:16]} (36. Qd3 {was called for.}) 36... Qe5 $19 {[%emt 0:00:47][%csl Gc7][%cal Re5h2]} 37. Qg2 {[%emt 0:00:01] Inhibits Qh2+.} Qf4 {[%emt 0:00:14] White must now prevent ...Qc1+.} 38. Bd3 {[%emt 0:01:37]} Kf6 $2 {[%emt 0:01:02]} (38... Qe3 $19 {is more deadly.} 39. Be2 d3) 39. g5+ $2 {[%emt 0:02:30]} (39. Kg1 $17 {was necessary.}) 39... Qxg5 {[%emt 0:01:07]} 40. Qf2+ {[%emt 0:00:08]} Qf4 {[%emt 0:00:07]} ({Worse is} 40... Ke7 41. Bc4 Qf4 42. Qxf4 Bxf4 43. Kg1 $17) 41. Qxf4+ {[%emt 0:00:16]} Bxf4 {[%emt 0:00:02] KB-KB} 42. Kg2 {[%emt 0:00:05]} Bd6 {[%emt 0:00:30]} 43. Bc4 {[%emt 0:00:22]} Ke7 {[%emt 0:01:28]} 44. Kf3 {[%emt 0:00:04]} f5 {[%emt 0:00:10]} 45. h4 $2 {[%emt 0:00:27]} (45. Bf1 g5 46. Ke2) 45... Kf6 {[%emt 0:01:43]} 46. Bg8 {[%emt 0:00:17]} h6 {[%emt 0:00:11] Threatens to win with ...g5.} 47. Bc4 {[%emt 0:00:18]} g5 {[%emt 0:00:07] And now ...g4+ would win.} 48. hxg5+ {[%emt 0:00:03]} hxg5 {[%emt 0:00:07]} 49. Bd3 {[%emt 0:00:15]} g4+ {[%emt 0:00:15] Black mates.} 50. Ke2 {[%emt 0:00:12]} Ke5 {[%emt 0:00:02]} 51. Kf2 {[%emt 0:00:18]} f4 {[%emt 0:00:57][%cal Bf5f4,Bf4f3][%mdl 32]} 52. Kg2 {[%emt 0:00:22]} Kf6 {[%emt 0:01:56]} 53. Bc4 {[%emt 0:00:38]} f3+ {[%emt 0:00:28]} 54. Kf2 {[%emt 0:00:06]} Kg5 {[%emt 0:00:03]} 55. Bd3 {[%emt 0:00:22]} Kf4 {[%emt 0:00:10]} 56. Bc2 {[%emt 0:00:36]} g3+ {[%emt 0:00:11]} 57. Kg1 {[%emt 0:00:04]} Ke3 {[%emt 0:00:07]} 58. Kf1 {[%emt 0:00:07]} g2+ {[%emt 0:00:47]} 59. Kg1 {[%emt 0:00:07]} Ke2 {[%emt 0:00:30]} 60. Bd3+ {[%emt 0:00:19]} Kxd3 {[%emt 0:00:07]} 61. c7 {[%emt 0:00:04]} Bxc7 {[%emt 0:00:03] KB-KP} 62. Kf2 {[%emt 0:00:07]} Kc3 {[%emt 0:00:17]} 63. Kg1 {[%emt 0:00:06]} d3 {[%emt 0:00:08]} 64. Kf2 {[%emt 0:00:08]} d2 {[%emt 0:00:07]} 65. Ke3 {[%emt 0:00:35]} g1=Q+ {[%emt 0:00:17]} 66. Kxf3 {[%emt 0:00:21]} d1=Q+ {[%emt 0:00:13]} 67. Ke4 {[%emt 0:00:09]} Qgg4+ {[%emt 0:00:25]} 68. Ke3 {[%emt 0:00:05]} Qgf3# {[%emt 0:05:24] Weighted Error Value: White=0.64/Black=0.25 (precise)} 0-1

[Event "Chessable English Open-ch 2022"]
[Site "Kenilwoth"]
[Date "2022.05.22"]
[Round "7.14"]
[White "Kumar, Soham"]
[Black "Shearsby, Jude"]
[Result "1/2-1/2"]
[ECO "B90"]
[WhiteElo "1678"]
[BlackElo "1849"]
[Annotator "NA RC COMBH"]
[PlyCount "97"]
[EventDate "2022.05.18"]
[EventType "swiss"]
[EventCountry "ENG"]
[SourceTitle "playchess.com"]
[Source "ChessBase"]
[SourceQuality "1"]
[TimeControl "5400+30"]

1. e4 {[%emt 0:00:02]} c5 {[%emt 0:01:20]} 2. Nf3 {[%emt 0:00:06]} d6 {[%emt 0:00:09]} 3. d4 {[%emt 0:00:05]} cxd4 {[%emt 0:00:04]} 4. Nxd4 {[%emt 0:00:08]} Nf6 {[%emt 0:00:08]} 5. Nc3 {[%emt 0:00:08]} a6 {[%emt 0:00:06]} 6. Be3 {[%emt 0:00:07]} e5 {[%emt 0:00:05]} 7. Nb3 {[%emt 0:00:05]} Be7 {[%emt 0:00:03]} 8. f3 {[%emt 0:00:08]} Be6 {[%emt 0:00:05]} 9. Qd2 {[%emt 0:00:26]} h5 {[%emt 0:00:02]} 10. Be2 {[%emt 0:01:24]} Nbd7 {[%emt 0:00:08]} 11. a4 {[%emt 0:00:26]} O-O {[%emt 0:00:33]} 12. O-O {[%emt 0:00:10]} Rc8 {[%emt 0:03:14]} 13. Rfd1 {[%emt 0:04:52]} Qc7 {[%emt 0:07:33]} 14. Rac1 {[%emt 0:03:32]} Nb6 {[%emt 0:02:56]} 15. a5 {[%emt 0:03:36]} Nc4 {[%emt 0:00:36]} 16. Bxc4 {[%emt 0:00:08]} Qxc4 {[%emt 0:00:51]} 17. Qd3 {[%emt 0:07:02]} Rfd8 {[%emt 0:11:54]} 18. Bb6 {[%emt 0:12:37]} Rd7 {[%emt 0:02:17]} 19. Nd5 {[%emt 0:04:07]} Nxd5 {[%emt 0:01:51]} 20. exd5 {[%emt 0:00:21]} Qxd3 {[%emt 0:00:13]} 21. Rxd3 {[%emt 0:00:38]} Bf5 {[%emt 0:00:08]} 22. Rc3 {[%emt 0:06:01]} Rxc3 {[%emt 0:00:22]} 23. bxc3 {[%emt 0:00:06]} Bg5 {[%emt 0:00:17]} 24. Re1 {[%emt 0:05:38]} Bxc2 {[%emt 0:00:24]} 25. Na1 {[%emt 0:00:20]} Bg6 {[%emt 0:00:54]} 26. Nb3 {[%emt 0:04:25]} Bd8 {[%emt 0:01:31]} 27. c4 {[%emt 0:02:50]} Bc2 {[%emt 0:06:24]} 28. Re3 {[%emt 0:05:29]} Bxb6 {[%emt 0:01:03]} 29. axb6 {[%emt 0:00:07]} Bxb3 {[%emt 0:00:07]} 30. Rxb3 {[%emt 0:00:06]} Rd8 {[%emt 0:00:19]} 31. Kf2 {[%emt 0:01:20]} Rc8 {[%emt 0:00:01]} 32. Rb4 {[%emt 0:02:16]} Kf8 {[%emt 0:00:34]} 33. Ke3 {[%emt 0:00:05]} Ke7 {[%emt 0:00:02]} 34. Kd3 {[%emt 0:01:24]} f5 {[%emt 0:01:23]} 35. h3 {[%emt 0:02:53]} g5 {[%emt 0:00:07]} 36. Rb1 {[%emt 0:02:08]} Rf8 {[%emt 0:01:55]} 37. Rh1 {[%emt 0:04:06]} Kd7 {[%emt 0:01:37]} 38. Ke3 {[%emt 0:03:52]} a5 {[%emt 0:02:26]} 39. Ra1 {[%emt 0:01:32]} Ra8 {[%emt 0:00:06]} 40. g4 {[%emt 0:02:36]} hxg4 {[%emt 0:00:56]} 41. hxg4 {[%emt 0:00:09]} a4 {[%emt 0:01:08]} 42. Rh1 {[%emt 0:04:55]} Ke7 {[%emt 0:00:07]} 43. Rh7+ {[%emt 0:00:11]} Kf6 {[%emt 0:00:06]} 44. Rxb7 {[%emt 0:00:39]} a3 {[%emt 0:04:15]} 45. Ra7 {[%emt 0:00:21]} Rb8 {[%emt 0:00:10]} 46. b7 {[%emt 0:00:25]} a2 {[%emt 0:00:16]} 47. Rxa2 {[%emt 0:00:16]} Rxb7 {[%emt 0:00:03]} 48. Ra3 {[%emt 0:04:06]} Rb6 {[%emt 0:02:03]} 49. Rc3 {[%emt 0:01:27]} 1/2-1/2